[Event "*** Titled Tuesday Blitz"]
[Site "Chess.com"]
[Date "2020.03.03"]
[Round "6"]
[White "Reshetkov"]
[Black "FelixJoseYnojosa"]
[Result "0-1"]
[WhiteElo "2546"]
[BlackElo "2689"]
[TimeControl "180+1"]
[EndTime "9:58:03 PST"]
[Termination "FelixJoseYnojosa won by resignation"]

1. d4 {[%clk 0:03:00.9]} 1... Nf6 {[%clk 0:02:59.4]} 2. c4 {[%clk 0:03:00.6]}
2... e6 {[%clk 0:02:59.8]} 3. Nc3 {[%clk 0:03:00.7]} 3... d5 {[%clk 0:03:00.2]}
4. cxd5 {[%clk 0:02:58.9]} 4... exd5 {[%clk 0:03:01.1]} 5. Bg5 {[%clk
0:02:58.8]} 5... c6 {[%clk 0:03:01.4]} 6. Qc2 {[%clk 0:02:58.4]} 6... Bd6 {[%clk
0:03:01.8]} 7. e3 {[%clk 0:02:58.3]} 7... O-O {[%clk 0:03:00.8]} 8. Bd3 {[%clk
0:02:58.2]} 8... h6 {[%clk 0:03:01.4]} 9. Bh4 {[%clk 0:02:58.4]} 9... Re8 {[%clk
0:03:01]} 10. Nf3 {[%clk 0:02:57.1]} 10... Bg4 {[%clk 0:03:00.7]} 11. O-O-O
{[%clk 0:02:56.8]} 11... b5 {[%clk 0:02:52.6]} 12. h3 {[%clk 0:02:55.2]} 12...
Bxf3 {[%clk 0:02:49.2]} 13. gxf3 {[%clk 0:02:55.1]} 13... a5 {[%clk 0:02:48.9]}
14. Rhg1 {[%clk 0:02:49.7]} 14... a4 {[%clk 0:02:47.4]} 15. Bh7+ {[%clk
0:02:31.4]} 15... Kf8 {[%clk 0:02:47.1]} 16. Rg2 {[%clk 0:02:04.7]} 16... g5
{[%clk 0:02:45.2]} 17. Bg3 {[%clk 0:02:01.1]} 17... b4 {[%clk 0:02:42.7]} 18.
Bxd6+ {[%clk 0:01:55.3]} 18... Qxd6 {[%clk 0:02:41.7]} 19. Ne2 {[%clk
0:01:50.4]} 19... b3 {[%clk 0:02:40.7]} 0-1

[Event "*** Titled Tuesday Blitz"]
[Site "Chess.com"]
[Date "2020.03.03"]
[Round "6"]
[White "Hubbery"]
[Black "karwowskikacper"]
[Result "1-0"]
[WhiteElo "2548"]
[BlackElo "2366"]
[TimeControl "180+1"]
[EndTime "9:58:56 PST"]
[Termination "Hubbery won by checkmate"]

1. b3 {[%clk 0:03:00.9]} 1... d5 {[%clk 0:02:59.7]} 2. Bb2 {[%clk 0:03:01.3]}
2... Bg4 {[%clk 0:03:00.1]} 3. Nf3 {[%clk 0:03:02.2]} 3... Bxf3 {[%clk
0:02:58.7]} 4. gxf3 {[%clk 0:03:00.2]} 4... e6 {[%clk 0:02:58.9]} 5. d3 {[%clk
0:02:56.2]} 5... Nf6 {[%clk 0:02:59.2]} 6. Nd2 {[%clk 0:02:55.5]} 6... Nc6
{[%clk 0:02:56.4]} 7. e3 {[%clk 0:02:49.5]} 7... g6 {[%clk 0:02:53.1]} 8. f4
{[%clk 0:02:48.1]} 8... Bg7 {[%clk 0:02:53.3]} 9. Be2 {[%clk 0:02:44]} 9... Nh5
{[%clk 0:02:48.4]} 10. Bxg7 {[%clk 0:02:42.7]} 10... Nxg7 {[%clk 0:02:49.3]} 11.
h4 {[%clk 0:02:42.9]} 11... h5 {[%clk 0:02:47]} 12. Nf3 {[%clk 0:02:37.5]} 12...
Qf6 {[%clk 0:02:41.5]} 13. d4 {[%clk 0:02:35.8]} 13... Nf5 {[%clk 0:02:35.9]}
14. Qd2 {[%clk 0:02:34.3]} 14... O-O-O {[%clk 0:02:33.3]} 15. a4 {[%clk
0:02:28]} 15... Kb8 {[%clk 0:02:32.4]} 16. b4 {[%clk 0:02:27.7]} 16... Nd6
{[%clk 0:02:23.5]} 17. Ne5 {[%clk 0:02:25.9]} 17... Ne4 {[%clk 0:02:10.3]} 18.
Nxc6+ {[%clk 0:02:18.8]} 18... bxc6 {[%clk 0:02:11.2]} 19. Qd3 {[%clk
0:02:18.9]} 19... Qe7 {[%clk 0:02:05.4]} 20. Rb1 {[%clk 0:02:14.5]} 20... Nd6
{[%clk 0:01:48.7]} 21. Qa6 {[%clk 0:02:12.5]} 21... Qd7 {[%clk 0:01:43.7]} 22.
b5 {[%clk 0:02:11.9]} 22... cxb5 {[%clk 0:01:44]} 23. Bxb5 {[%clk 0:02:11.4]}
23... Nxb5 {[%clk 0:01:44.2]} 24. Rxb5+ {[%clk 0:02:11.8]} 24... Ka8 {[%clk
0:01:44.7]} 25. Qb7# {[%clk 0:02:11.9]} 1-0

[Event "*** Titled Tuesday Blitz"]
[Site "Chess.com"]
[Date "2020.03.03"]
[Round "6"]
[White "korbul"]
[Black "bugbug01052018"]
[Result "1/2-1/2"]
[WhiteElo "2534"]
[BlackElo "2272"]
[TimeControl "180+1"]
[EndTime "9:59:01 PST"]
[Termination "Game drawn by agreement"]

1. d4 {[%clk 0:03:00.9]} 1... Nf6 {[%clk 0:02:59.7]} 2. Nf3 {[%clk 0:03:00.2]}
2... c5 {[%clk 0:02:58.5]} 3. d5 {[%clk 0:02:59.9]} 3... e6 {[%clk 0:02:58.2]}
4. Nc3 {[%clk 0:02:59.2]} 4... exd5 {[%clk 0:02:57.2]} 5. Nxd5 {[%clk
0:02:59.4]} 5... Nxd5 {[%clk 0:02:55.9]} 6. Qxd5 {[%clk 0:02:58.4]} 6... d6
{[%clk 0:02:56]} 7. e4 {[%clk 0:02:57.7]} 7... Nc6 {[%clk 0:02:56.1]} 8. c3
{[%clk 0:02:55.3]} 8... Be6 {[%clk 0:02:56.1]} 9. Qd1 {[%clk 0:02:54.3]} 9... d5
{[%clk 0:02:56.6]} 10. exd5 {[%clk 0:02:53.8]} 10... Qxd5 {[%clk 0:02:55.7]} 11.
Qxd5 {[%clk 0:02:53.6]} 11... Bxd5 {[%clk 0:02:56.6]} 12. Be2 {[%clk 0:02:53.9]}
12... Be7 {[%clk 0:02:56.3]} 13. O-O {[%clk 0:02:53.9]} 13... O-O {[%clk
0:02:56.3]} 14. Be3 {[%clk 0:02:54]} 14... Rad8 {[%clk 0:02:55.1]} 15. Rfd1
{[%clk 0:02:52.4]} 15... b6 {[%clk 0:02:54.1]} 16. h3 {[%clk 0:02:50.9]} 16...
Bf6 {[%clk 0:02:50.8]} 17. Bf4 {[%clk 0:02:49.9]} 17... Na5 {[%clk 0:02:39]} 18.
Rd2 {[%clk 0:02:35.5]} 18... Nc4 {[%clk 0:02:37.6]} 19. Bxc4 {[%clk 0:02:34.6]}
19... Bxc4 {[%clk 0:02:38]} 20. a3 {[%clk 0:02:28.7]} 20... Rxd2 {[%clk
0:02:33.7]} 21. Nxd2 {[%clk 0:02:27.2]} 21... Bb5 {[%clk 0:02:30.4]} 22. Re1
{[%clk 0:02:26.1]} 22... Rd8 {[%clk 0:02:29.2]} 23. Ne4 {[%clk 0:02:25.7]} 23...
Be7 {[%clk 0:02:26.7]} 24. Bg5 {[%clk 0:02:08.5]} 24... Bxg5 {[%clk 0:02:25]}
25. Nxg5 {[%clk 0:02:07.9]} 25... h6 {[%clk 0:02:25.2]} 26. Nf3 {[%clk
0:02:05.5]} 26... Bc6 {[%clk 0:02:21.7]} 27. Re7 {[%clk 0:02:03.3]} 27... Bxf3
{[%clk 0:02:21.4]} 28. gxf3 {[%clk 0:02:02.7]} 28... Rd2 {[%clk 0:02:21.2]} 29.
b4 {[%clk 0:02:01]} 29... Rc2 {[%clk 0:02:12.7]} 30. Rxa7 {[%clk 0:01:59.3]}
30... Rxc3 {[%clk 0:02:11.9]} 31. bxc5 {[%clk 0:01:59.4]} 31... Rxc5 {[%clk
0:02:11.5]} 32. Rb7 {[%clk 0:01:56.2]} 32... Rb5 {[%clk 0:02:10.8]} 1/2-1/2

[Event "*** Titled Tuesday Blitz"]
[Site "Chess.com"]
[Date "2020.03.03"]
[Round "6"]
[White "lestri"]
[Black "bgfbfbgfbgfgf"]
[Result "1-0"]
[WhiteElo "2517"]
[BlackElo "2632"]
[TimeControl "180+1"]
[EndTime "9:59:28 PST"]
[Termination "lestri won by resignation"]

1. c4 {[%clk 0:03:00.9]} 1... Nf6 {[%clk 0:02:59.1]} 2. Nc3 {[%clk 0:03:00.1]}
2... c5 {[%clk 0:02:57.9]} 3. Nf3 {[%clk 0:02:59.3]} 3... g6 {[%clk 0:02:57.4]}
4. d4 {[%clk 0:02:59]} 4... Bg7 {[%clk 0:02:56.1]} 5. e4 {[%clk 0:02:57.8]} 5...
d6 {[%clk 0:02:55.9]} 6. Be2 {[%clk 0:02:55.9]} 6... O-O {[%clk 0:02:54.8]} 7.
O-O {[%clk 0:02:55.8]} 7... Bg4 {[%clk 0:02:54.8]} 8. d5 {[%clk 0:02:55.1]} 8...
Na6 {[%clk 0:02:50]} 9. Ne1 {[%clk 0:02:47.1]} 9... Bxe2 {[%clk 0:02:45.8]} 10.
Qxe2 {[%clk 0:02:46.6]} 10... Nc7 {[%clk 0:02:46.7]} 11. Nd3 {[%clk 0:02:46.1]}
11... Nd7 {[%clk 0:02:46.7]} 12. Bf4 {[%clk 0:02:44.5]} 12... a6 {[%clk
0:02:45.9]} 13. a4 {[%clk 0:02:43.6]} 13... Rb8 {[%clk 0:02:45.5]} 14. a5 {[%clk
0:02:40.4]} 14... b5 {[%clk 0:02:39.1]} 15. axb6 {[%clk 0:02:39.6]} 15... Rxb6
{[%clk 0:02:38.6]} 16. Qd2 {[%clk 0:02:38]} 16... e5 {[%clk 0:02:34.1]} 17. Be3
{[%clk 0:02:31.7]} 17... f5 {[%clk 0:02:33.8]} 18. f3 {[%clk 0:02:31.3]} 18...
f4 {[%clk 0:02:21.4]} 19. Bf2 {[%clk 0:02:30.7]} 19... Rb7 {[%clk 0:02:15.3]}
20. Rfb1 {[%clk 0:02:27.9]} 20... Qb8 {[%clk 0:02:08]} 21. Na4 {[%clk
0:02:19.7]} 21... Rb3 {[%clk 0:02:05.5]} 22. Nc1 {[%clk 0:02:18.7]} 22... Rb4
{[%clk 0:02:05.5]} 23. b3 {[%clk 0:02:18.2]} 23... Nb6 {[%clk 0:01:51.5]} 24.
Nxc5 {[%clk 0:02:13.2]} 24... dxc5 {[%clk 0:01:49]} 25. Bxc5 {[%clk 0:02:11.8]}
25... Nxc4 {[%clk 0:01:49.3]} 26. Qxb4 {[%clk 0:02:11.4]} 26... Qxb4 {[%clk
0:01:44.7]} 27. Bxb4 {[%clk 0:02:10.8]} 27... Ne3 {[%clk 0:01:45.6]} 28. Bxf8
{[%clk 0:01:59]} 28... Bxf8 {[%clk 0:01:46.5]} 29. Nd3 {[%clk 0:01:59]} 1-0

[Event "*** Titled Tuesday Blitz"]
[Site "Chess.com"]
[Date "2020.03.03"]
[Round "6"]
[White "vladislavkovalev"]
[Black "Eltaj_Safarli"]
[Result "1/2-1/2"]
[WhiteElo "2901"]
[BlackElo "3039"]
[TimeControl "180+1"]
[EndTime "9:59:30 PST"]
[Termination "Game drawn by agreement"]

1. e4 {[%clk 0:03:00.9]} 1... e5 {[%clk 0:03:00.1]} 2. Nf3 {[%clk 0:03:01.1]}
2... Nc6 {[%clk 0:02:59]} 3. Bb5 {[%clk 0:03:00.8]} 3... Nf6 {[%clk 0:02:59]} 4.
O-O {[%clk 0:03:00.5]} 4... Nxe4 {[%clk 0:02:58.5]} 5. Re1 {[%clk 0:03:01]} 5...
Nd6 {[%clk 0:02:58.2]} 6. Nxe5 {[%clk 0:03:01.7]} 6... Be7 {[%clk 0:02:57.1]} 7.
Bf1 {[%clk 0:03:01.9]} 7... Nxe5 {[%clk 0:02:56.1]} 8. Rxe5 {[%clk 0:03:02.8]}
8... O-O {[%clk 0:02:55.5]} 9. d4 {[%clk 0:03:03.5]} 9... Bf6 {[%clk 0:02:54.5]}
10. Re1 {[%clk 0:03:04]} 10... Re8 {[%clk 0:02:54.8]} 11. c3 {[%clk 0:03:04.5]}
11... Rxe1 {[%clk 0:02:53.6]} 12. Qxe1 {[%clk 0:03:05.4]} 12... Qe8 {[%clk
0:02:54]} 13. Qxe8+ {[%clk 0:03:03.8]} 13... Nxe8 {[%clk 0:02:54.9]} 14. a4
{[%clk 0:03:04.7]} 14... a5 {[%clk 0:02:53.8]} 15. Bf4 {[%clk 0:03:04.4]} 15...
d5 {[%clk 0:02:51.3]} 16. Bd3 {[%clk 0:02:59.1]} 16... c6 {[%clk 0:02:48.2]} 17.
Nd2 {[%clk 0:02:54.8]} 17... Be7 {[%clk 0:02:42.8]} 18. Re1 {[%clk 0:02:53.9]}
18... Be6 {[%clk 0:02:40.9]} 19. Bf5 {[%clk 0:02:43.9]} 19... Bd6 {[%clk
0:02:39.3]} 20. Bxd6 {[%clk 0:02:35.3]} 20... Bxf5 {[%clk 0:02:38.9]} 21. Bf4
{[%clk 0:02:16.8]} 21... Nf6 {[%clk 0:02:35.3]} 22. f3 {[%clk 0:02:08.5]} 22...
Re8 {[%clk 0:02:31.7]} 23. Rxe8+ {[%clk 0:01:42.6]} 23... Nxe8 {[%clk
0:02:32.6]} 24. Kf2 {[%clk 0:01:42.8]} 24... h5 {[%clk 0:02:28.5]} 25. Bb8
{[%clk 0:01:32.1]} 25... Bc2 {[%clk 0:02:22.4]} 26. Ba7 {[%clk 0:01:18]} 1/2-1/2

[Event "*** Titled Tuesday Blitz"]
[Site "Chess.com"]
[Date "2020.03.03"]
[Round "6"]
[White "Gordima"]
[Black "Shield12"]
[Result "1-0"]
[WhiteElo "2773"]
[BlackElo "2888"]
[TimeControl "180+1"]
[EndTime "10:00:07 PST"]
[Termination "Gordima won by resignation"]

1. d4 {[%clk 0:03:00.9]} 1... d5 {[%clk 0:03:00.2]} 2. c4 {[%clk 0:03:00.8]}
2... e6 {[%clk 0:03:00.6]} 3. Nc3 {[%clk 0:02:59.1]} 3... Bb4 {[%clk 0:02:59.7]}
4. cxd5 {[%clk 0:02:55.5]} 4... exd5 {[%clk 0:03:00.6]} 5. a3 {[%clk 0:02:55.9]}
5... Bxc3+ {[%clk 0:02:59.5]} 6. bxc3 {[%clk 0:02:56.8]} 6... Ne7 {[%clk
0:02:58.2]} 7. e3 {[%clk 0:02:54.2]} 7... O-O {[%clk 0:02:58.6]} 8. Bd3 {[%clk
0:02:53.8]} 8... Bf5 {[%clk 0:02:56.9]} 9. Ne2 {[%clk 0:02:53.5]} 9... Bxd3
{[%clk 0:02:56.4]} 10. Qxd3 {[%clk 0:02:53.5]} 10... c5 {[%clk 0:02:57.3]} 11.
O-O {[%clk 0:02:51.4]} 11... Nbc6 {[%clk 0:02:57.4]} 12. Bb2 {[%clk 0:02:47.1]}
12... cxd4 {[%clk 0:02:56.3]} 13. cxd4 {[%clk 0:02:45.4]} 13... Qd7 {[%clk
0:02:56.4]} 14. Bc3 {[%clk 0:02:33.5]} 14... Rfe8 {[%clk 0:02:54.8]} 15. Rab1
{[%clk 0:02:31.4]} 15... Rac8 {[%clk 0:02:51.5]} 16. a4 {[%clk 0:02:25]} 16...
b6 {[%clk 0:02:48.9]} 17. Rb5 {[%clk 0:02:21.6]} 17... Rc7 {[%clk 0:02:43.9]}
18. Rfb1 {[%clk 0:02:19.4]} 18... Rec8 {[%clk 0:02:43.2]} 19. Be1 {[%clk
0:02:16.4]} 19... h6 {[%clk 0:02:34.1]} 20. h3 {[%clk 0:02:16.3]} 20... Ng6
{[%clk 0:02:27.1]} 21. Bd2 {[%clk 0:01:30.2]} 21... Nce7 {[%clk 0:02:23.7]} 22.
a5 {[%clk 0:01:30.2]} 22... bxa5 {[%clk 0:02:23.3]} 23. Bxa5 {[%clk 0:01:26.3]}
23... Rc2 {[%clk 0:02:20.6]} 24. Nc3 {[%clk 0:01:16.8]} 24... Qf5 {[%clk
0:02:09.5]} 25. Qxf5 {[%clk 0:01:15.6]} 25... Nxf5 {[%clk 0:02:10.4]} 26. Nxd5
{[%clk 0:01:15.7]} 26... Ra2 {[%clk 0:02:06.2]} 27. Nb4 {[%clk 0:00:50.6]} 1-0

[Event "*** Titled Tuesday Blitz"]
[Site "Chess.com"]
[Date "2020.03.03"]
[Round "6"]
[White "Redbandit87"]
[Black "monstertube"]
[Result "1-0"]
[WhiteElo "2418"]
[BlackElo "2109"]
[TimeControl "180+1"]
[EndTime "10:00:14 PST"]
[Termination "Redbandit87 won on time"]

1. d4 {[%clk 0:03:00.9]} 1... d5 {[%clk 0:02:59.3]} 2. Bf4 {[%clk 0:03:01]} 2...
Nf6 {[%clk 0:02:57.8]} 3. e3 {[%clk 0:02:58]} 3... c5 {[%clk 0:02:57.5]} 4. c3
{[%clk 0:02:58]} 4... Nc6 {[%clk 0:02:57.1]} 5. Nd2 {[%clk 0:02:58.3]} 5... h6
{[%clk 0:02:56.1]} 6. Ngf3 {[%clk 0:02:58.3]} 6... Bg4 {[%clk 0:02:55.7]} 7. Bd3
{[%clk 0:02:57.8]} 7... e6 {[%clk 0:02:54.5]} 8. h3 {[%clk 0:02:57.9]} 8... Bxf3
{[%clk 0:02:54]} 9. Qxf3 {[%clk 0:02:54.6]} 9... Bd6 {[%clk 0:02:53.7]} 10. O-O
{[%clk 0:02:45]} 10... Bxf4 {[%clk 0:02:52.7]} 11. Qxf4 {[%clk 0:02:44.2]} 11...
cxd4 {[%clk 0:02:51.9]} 12. exd4 {[%clk 0:02:44.3]} 12... O-O {[%clk 0:02:51.4]}
13. Nf3 {[%clk 0:02:43.2]} 13... Nd7 {[%clk 0:02:49.2]} 14. Rfe1 {[%clk
0:02:38.2]} 14... a6 {[%clk 0:02:49.1]} 15. a4 {[%clk 0:02:35.9]} 15... Rb8
{[%clk 0:02:45.3]} 16. b4 {[%clk 0:02:35.4]} 16... Qf6 {[%clk 0:02:35.5]} 17.
Qc7 {[%clk 0:02:31.7]} 17... Qd8 {[%clk 0:02:31.2]} 18. Qg3 {[%clk 0:02:29.6]}
18... Qf6 {[%clk 0:02:19.8]} 19. Re3 {[%clk 0:02:27.8]} 19... Rfe8 {[%clk
0:02:19.1]} 20. Rae1 {[%clk 0:02:22.8]} 1-0

[Event "*** Titled Tuesday Blitz"]
[Site "Chess.com"]
[Date "2020.03.03"]
[Round "6"]
[White "VitaliyBernadskiy"]
[Black "MergenKakabaev"]
[Result "1-0"]
[WhiteElo "2797"]
[BlackElo "2495"]
[TimeControl "180+1"]
[EndTime "10:00:23 PST"]
[Termination "VitaliyBernadskiy won by resignation"]

1. d4 {[%clk 0:03:00.9]} 1... d5 {[%clk 0:02:59.7]} 2. Nf3 {[%clk 0:03:00.8]}
2... Nf6 {[%clk 0:02:59.1]} 3. c4 {[%clk 0:03:00.7]} 3... c6 {[%clk 0:02:58.6]}
4. Nc3 {[%clk 0:03:00.6]} 4... e6 {[%clk 0:02:58.8]} 5. g3 {[%clk 0:02:57.6]}
5... Nbd7 {[%clk 0:02:58.3]} 6. Bg2 {[%clk 0:02:58.5]} 6... dxc4 {[%clk
0:02:58.2]} 7. O-O {[%clk 0:02:58.8]} 7... b5 {[%clk 0:02:55.9]} 8. e4 {[%clk
0:02:58.3]} 8... Nb6 {[%clk 0:02:54.4]} 9. a4 {[%clk 0:02:54.2]} 9... b4 {[%clk
0:02:54.5]} 10. e5 {[%clk 0:02:54.5]} 10... Nfd5 {[%clk 0:02:50.9]} 11. Ne4
{[%clk 0:02:53.9]} 11... a5 {[%clk 0:02:51.3]} 12. Nfg5 {[%clk 0:02:44.4]} 12...
h6 {[%clk 0:02:46]} 13. Qh5 {[%clk 0:02:39.8]} 13... Qc7 {[%clk 0:02:44.3]} 14.
Nd6+ {[%clk 0:02:35.5]} 14... Bxd6 {[%clk 0:02:41.6]} 15. exd6 {[%clk
0:02:36.4]} 15... Qd7 {[%clk 0:02:38]} 16. Ne4 {[%clk 0:02:31.2]} 16... Ba6
{[%clk 0:02:03.6]} 17. Re1 {[%clk 0:02:25.3]} 17... Rf8 {[%clk 0:01:51.6]} 18.
Nc5 {[%clk 0:02:24.8]} 18... Qa7 {[%clk 0:01:46.2]} 19. Nxe6 {[%clk 0:01:59.7]}
19... Kd7 {[%clk 0:01:43.7]} 20. Nxf8+ {[%clk 0:01:56.3]} 20... Rxf8 {[%clk
0:01:44.6]} 21. Bh3+ {[%clk 0:01:55.4]} 21... Kd8 {[%clk 0:01:41.5]} 22. Qg4
{[%clk 0:01:40.8]} 22... f5 {[%clk 0:01:33.5]} 23. Qh4+ {[%clk 0:01:37.5]} 23...
Rf6 {[%clk 0:01:33.2]} 24. Bf4 {[%clk 0:01:25.5]} 24... g5 {[%clk 0:01:29.7]}
25. Bxg5 {[%clk 0:01:25.5]} 25... hxg5 {[%clk 0:01:30.6]} 26. Qh8+ {[%clk
0:01:24.8]} 26... Kd7 {[%clk 0:01:30.3]} 27. Qh7+ {[%clk 0:01:24.6]} 27... Kxd6
{[%clk 0:01:27.6]} 28. Qxa7 {[%clk 0:01:22.2]} 1-0

[Event "*** Titled Tuesday Blitz"]
[Site "Chess.com"]
[Date "2020.03.03"]
[Round "6"]
[White "Keranke"]
[Black "chigorin28"]
[Result "0-1"]
[WhiteElo "2787"]
[BlackElo "2692"]
[TimeControl "180+1"]
[EndTime "10:00:46 PST"]
[Termination "chigorin28 won by resignation"]

1. d4 {[%clk 0:03:00.9]} 1... Nf6 {[%clk 0:02:58.3]} 2. c4 {[%clk 0:03:01]} 2...
c5 {[%clk 0:02:58.7]} 3. d5 {[%clk 0:03:01.1]} 3... b5 {[%clk 0:02:59.1]} 4.
cxb5 {[%clk 0:03:02]} 4... a6 {[%clk 0:02:58.7]} 5. Nc3 {[%clk 0:03:02.1]} 5...
axb5 {[%clk 0:02:56.4]} 6. e4 {[%clk 0:03:02.6]} 6... b4 {[%clk 0:02:54.7]} 7.
Nb5 {[%clk 0:03:03]} 7... d6 {[%clk 0:02:53.5]} 8. Bc4 {[%clk 0:03:02.6]} 8...
Nbd7 {[%clk 0:02:51.3]} 9. Nf3 {[%clk 0:03:02.4]} 9... g6 {[%clk 0:02:51.7]} 10.
e5 {[%clk 0:03:02.5]} 10... dxe5 {[%clk 0:02:49.9]} 11. d6 {[%clk 0:03:03.4]}
11... exd6 {[%clk 0:02:47.8]} 12. Ng5 {[%clk 0:02:58.4]} 12... Qb6 {[%clk
0:02:44.2]} 13. Nxf7 {[%clk 0:02:52.1]} 13... d5 {[%clk 0:02:44.5]} 14. Bxd5
{[%clk 0:02:51.2]} 14... Qxb5 {[%clk 0:02:42]} 15. Nxh8 {[%clk 0:02:47.4]} 15...
Bb7 {[%clk 0:02:41.9]} 16. Bf7+ {[%clk 0:02:43.4]} 16... Ke7 {[%clk 0:02:39.6]}
17. Qb3 {[%clk 0:02:37.6]} 17... Ba6 {[%clk 0:02:35.5]} 18. Qf3 {[%clk
0:02:28.3]} 18... e4 {[%clk 0:02:28]} 19. Qe3 {[%clk 0:02:26.5]} 19... Bh6
{[%clk 0:02:18.7]} 20. f4 {[%clk 0:02:24.9]} 20... Bxf4 {[%clk 0:02:14.1]} 21.
Qf2 {[%clk 0:02:23.4]} 21... Ng4 {[%clk 0:02:05.4]} 22. Qc2 {[%clk 0:02:19.2]}
22... Nge5 {[%clk 0:01:53.4]} 23. Bxf4 {[%clk 0:02:13.2]} 23... Nd3+ {[%clk
0:01:51.5]} 24. Kd2 {[%clk 0:02:13.3]} 24... Rxh8 {[%clk 0:01:48.9]} 25. Raf1
{[%clk 0:01:58.2]} 25... Kxf7 {[%clk 0:01:44.5]} 26. Be5+ {[%clk 0:01:57.5]}
26... Kg8 {[%clk 0:01:41]} 27. Bxh8 {[%clk 0:01:56.8]} 27... Kxh8 {[%clk
0:01:41.5]} 28. a4 {[%clk 0:01:56.4]} 28... Qc6 {[%clk 0:01:37.5]} 29. Qd1
{[%clk 0:01:51.3]} 29... Qd5 {[%clk 0:01:35]} 30. Kc2 {[%clk 0:01:46.9]} 30...
Kg7 {[%clk 0:01:31.9]} 31. Kb1 {[%clk 0:01:45.3]} 31... N7e5 {[%clk 0:01:26.7]}
32. Qd2 {[%clk 0:01:38.4]} 32... Nc4 {[%clk 0:01:24.7]} 33. Qe2 {[%clk 0:01:37]}
33... Ncxb2 {[%clk 0:01:22.6]} 34. Qc2 {[%clk 0:01:32.8]} 34... b3 {[%clk
0:01:18.8]} 35. Qc3+ {[%clk 0:01:29.2]} 35... Qd4 {[%clk 0:01:16.1]} 36. Qa5
{[%clk 0:01:29.9]} 36... Nc4 {[%clk 0:01:08.9]} 37. Qc7+ {[%clk 0:01:30]} 37...
Kh6 {[%clk 0:01:08.5]} 0-1

[Event "*** Titled Tuesday Blitz"]
[Site "Chess.com"]
[Date "2020.03.03"]
[Round "6"]
[White "Komissarov_alex"]
[Black "DACF2905"]
[Result "0-1"]
[WhiteElo "1763"]
[BlackElo "2212"]
[TimeControl "180+1"]
[EndTime "10:00:48 PST"]
[Termination "DACF2905 won by checkmate"]

1. d4 {[%clk 0:03:00.9]} 1... Nf6 {[%clk 0:02:58.7]} 2. Nf3 {[%clk 0:02:58.7]}
2... e6 {[%clk 0:02:57]} 3. e3 {[%clk 0:02:57.4]} 3... b6 {[%clk 0:02:56.4]} 4.
Nbd2 {[%clk 0:02:55.6]} 4... Bb7 {[%clk 0:00:51.6]} 5. Bd3 {[%clk 0:02:48.4]}
5... Be7 {[%clk 0:00:42.5]} 6. O-O {[%clk 0:02:44.8]} 6... d5 {[%clk 0:00:37.9]}
7. Ne5 {[%clk 0:02:42.3]} 7... O-O {[%clk 0:00:35.1]} 8. f4 {[%clk 0:02:41.4]}
8... c5 {[%clk 0:00:25.4]} 9. Qf3 {[%clk 0:02:31.6]} 9... Nbd7 {[%clk 0:00:19]}
10. g4 {[%clk 0:02:29.7]} 10... Nxe5 {[%clk 0:00:17.9]} 11. fxe5 {[%clk
0:02:27.4]} 11... Ne4 {[%clk 0:00:18.8]} 12. Nxe4 {[%clk 0:02:25.1]} 12... dxe4
{[%clk 0:00:19.7]} 13. Bxe4 {[%clk 0:02:24.2]} 13... Bxe4 {[%clk 0:00:20.6]} 14.
Qxe4 {[%clk 0:02:23.5]} 14... cxd4 {[%clk 0:00:21.5]} 15. exd4 {[%clk
0:02:22.2]} 15... f5 {[%clk 0:00:21.7]} 16. exf6 {[%clk 0:02:19]} 16... Bxf6
{[%clk 0:00:21.7]} 17. Qxe6+ {[%clk 0:02:12.4]} 17... Kh8 {[%clk 0:00:22]} 18.
c3 {[%clk 0:02:10.8]} 18... Bxd4+ {[%clk 0:00:21.2]} 19. cxd4 {[%clk 0:02:04.5]}
19... Qxd4+ {[%clk 0:00:22.1]} 20. Qe3 {[%clk 0:01:59.7]} 20... Qxg4+ {[%clk
0:00:21.5]} 21. Qg3 {[%clk 0:01:56.5]} 21... Rxf1+ {[%clk 0:00:21.4]} 22. Kxf1
{[%clk 0:01:53]} 22... Rf8+ {[%clk 0:00:21.6]} 23. Kg1 {[%clk 0:01:51.6]} 23...
Qd1+ {[%clk 0:00:21.2]} 24. Kg2 {[%clk 0:01:43.9]} 24... Qf1# {[%clk 0:00:21]}
0-1

[Event "*** Titled Tuesday Blitz"]
[Site "Chess.com"]
[Date "2020.03.03"]
[Round "6"]
[White "marcodobrikov"]
[Black "Arystanner"]
[Result "0-1"]
[WhiteElo "2565"]
[BlackElo "2739"]
[TimeControl "180+1"]
[EndTime "10:00:49 PST"]
[Termination "Arystanner won by checkmate"]

1. e4 {[%clk 0:03:00.9]} 1... c6 {[%clk 0:02:59.2]} 2. Nf3 {[%clk 0:03:01.1]}
2... d5 {[%clk 0:02:59.3]} 3. Nc3 {[%clk 0:03:02]} 3... dxe4 {[%clk 0:02:58.7]}
4. Nxe4 {[%clk 0:03:01.6]} 4... Nf6 {[%clk 0:02:59.6]} 5. Nxf6+ {[%clk
0:03:02.1]} 5... exf6 {[%clk 0:02:59.6]} 6. Bc4 {[%clk 0:03:02.2]} 6... Qe7+
{[%clk 0:02:54.1]} 7. Be2 {[%clk 0:03:01.1]} 7... Qc7 {[%clk 0:02:49.6]} 8. O-O
{[%clk 0:03:00.9]} 8... Bd6 {[%clk 0:02:49.3]} 9. d4 {[%clk 0:02:58.6]} 9... O-O
{[%clk 0:02:49.3]} 10. c4 {[%clk 0:02:57.5]} 10... Bg4 {[%clk 0:02:47.4]} 11. h3
{[%clk 0:02:57.2]} 11... Bh5 {[%clk 0:02:47.5]} 12. Be3 {[%clk 0:02:50]} 12...
Nd7 {[%clk 0:02:47.1]} 13. Qd2 {[%clk 0:02:47]} 13... c5 {[%clk 0:02:39.8]} 14.
dxc5 {[%clk 0:02:44.1]} 14... Nxc5 {[%clk 0:02:37.3]} 15. Nd4 {[%clk 0:02:34.7]}
15... Bxe2 {[%clk 0:02:32.1]} 16. Qxe2 {[%clk 0:02:34.5]} 16... a6 {[%clk
0:02:27]} 17. b4 {[%clk 0:02:30.9]} 17... Ne6 {[%clk 0:02:27.5]} 18. c5 {[%clk
0:02:24.8]} 18... Bh2+ {[%clk 0:02:24.4]} 19. Kh1 {[%clk 0:02:24]} 19... Nxd4
{[%clk 0:02:23.6]} 20. Bxd4 {[%clk 0:02:23.6]} 20... Rfe8 {[%clk 0:02:24]} 21.
Qc4 {[%clk 0:02:21.4]} 21... Rad8 {[%clk 0:02:21.1]} 22. Rad1 {[%clk 0:02:18.7]}
22... Re4 {[%clk 0:01:56.7]} 23. Rfe1 {[%clk 0:02:05.9]} 23... Rxe1+ {[%clk
0:01:50]} 24. Rxe1 {[%clk 0:02:05.7]} 24... Be5 {[%clk 0:01:43.6]} 25. Be3
{[%clk 0:02:00.8]} 25... Qc6 {[%clk 0:01:39.9]} 26. Qc2 {[%clk 0:01:54.7]} 26...
h6 {[%clk 0:01:29.8]} 27. a4 {[%clk 0:01:51.2]} 27... g5 {[%clk 0:01:28.2]} 28.
Rb1 {[%clk 0:01:44.8]} 28... Kg7 {[%clk 0:01:23.5]} 29. b5 {[%clk 0:01:42.7]}
29... axb5 {[%clk 0:01:23]} 30. axb5 {[%clk 0:01:43.6]} 30... Qd5 {[%clk
0:01:19.3]} 31. Rc1 {[%clk 0:01:26.2]} 31... h5 {[%clk 0:01:14.1]} 32. Qf5
{[%clk 0:01:24.4]} 32... Qd1+ {[%clk 0:01:11.9]} 33. Rxd1 {[%clk 0:01:18.6]}
33... Rxd1# {[%clk 0:01:12.8]} 0-1